bitfinex/quotes_SOLUSD_20251208
["timestamp","ask_amount","ask_price","bid_price","bid_amount"]
[1765204964989,7.96,137.48,137.45,0.69]
[1765204965181,0.72960747,137.5,137.45,6.81504695]
[1765204965479,0.1,137.52,137.45,6.81504695]
[1765204965480,7.37186119,137.52,137.47,6.12504695]
[1765204965661,0.82960747,137.52,137.48,0.69]
[1765204965972,8.10163782,137.52,137.48,0.69]
[1765204966761,8.10163782,137.52,137.48,6.22854695]
[1765204966960,8.10163782,137.52,137.48,0.91875695]
[1765204967165,8.10163782,137.52,137.45,7.27537286]
[1765204967520,6.12504695,137.5,137.44,6.12504695]
[1765204967791,6.12504695,137.48,137.42,6.12504695]
[1765204967968,6.12504695,137.46,137.4,6.12504695]
[1765204968170,6.85465442,137.46,137.4,13.40271152]
[1765204968688,6.85465442,137.46,137.4,6.12504695]
[1765204968892,6.85465442,137.46,137.41,0.69]
[1765204969062,31.58885196,137.45,137.41,0.69]
[1765204969268,6.85465442,137.44,137.39,6.12504695]
[1765204969462,6.85465442,137.44,137.38,22.07395624]
[1765204969990,6.85465442,137.44,137.38,14.10504695]
[1765204970164,6.85465442,137.44,137.39,0.69]
[1765204970664,6.12504695,137.42,137.36,6.81504695]
[1765204970985,6.12504695,137.41,137.36,0.69]
[1765204971199,7.27855011,137.39,137.34,6.12504695]
[1765204971406,0.72960747,137.42,137.37,6.12504695]
[1765204971719,26.88101159,137.43,137.38,6.83504695]
[1765204972292,31.59458261,137.42,137.38,0.71]
[1765204972704,7.27713281,137.42,137.38,0.71]
[1765204973110,15.2366175,137.43,137.39,13.40343132]
[1765204973291,7.96,137.43,137.4,0.71]
[1765204973502,7.27573066,137.45,137.4,6.83504695]
[1765204973825,7.27573066,137.45,137.41,0.71]
[1765204974410,7.27573066,137.45,137.41,6.83504695]
[1765204974716,7.27573066,137.45,137.41,7.98747945]
[1765204974890,7.27573066,137.45,137.42,0.71]
[1765204976485,15.23501575,137.46,137.42,14.1119374]
[1765204976697,15.23501575,137.46,137.42,6.83504695]
[1765204976912,15.23501575,137.46,137.43,0.71]
[1765204977302,7.96,137.46,137.43,0.71]
[1765204977530,15.23490085,137.46,137.43,0.71]
[1765204978788,7.27490085,137.46,137.43,0.71]
[1765204980331,0.58,137.49,137.45,6.12504695]
[1765204980332,0.72960747,137.49,137.45,6.12504695]
[1765204980500,8.10130974,137.52,137.48,7.27378527]
[1765204980699,8.10130974,137.52,137.47,6.12504695]
[1765204980891,0.82960747,137.52,137.49,6.12504695]
[1765204981109,0.1,137.52,137.49,6.12504695]
[1765204981320,0.1,137.52,137.51,6.12504695]
[1765204981625,0.1,137.52,137.45,44.35451851]
[1765204981626,0.1,137.52,137.48,0.67]
[1765204981825,0.82960747,137.52,137.48,0.67]
[1765204982042,0.1,137.52,137.49,6.12504695]
[1765204982330,0.1,137.52,137.51,6.12504695]
[1765204982553,0.1,137.52,137.5,6.12504695]
[1765204982700,0.1,137.52,137.51,7.27219838]
[1765204983036,0.1,137.52,137.51,0.67]
[1765204983317,0.1,137.52,137.49,14.06824026]
[1765204983738,0.1,137.52,137.51,6.12504695]
[1765204984023,0.1,137.57,137.51,6.12504695]
[1765204984322,0.1,137.57,137.56,6.12504695]
[1765204984497,7.36520124,137.65,137.6,6.12504695]
[1765204984817,0.72960747,137.64,137.6,14.06242256]
[1765204985043,0.72960747,137.64,137.62,6.12504695]
[1765204985225,0.82960747,137.65,137.62,6.12504695]
[1765204985395,0.1,137.65,137.63,6.79504695]
[1765204985792,0.1,137.65,137.64,0.67]
[1765204986196,0.1,137.65,137.64,6.79504695]
[1765204986595,0.1,137.65,137.64,14.06037679]
[1765204987223,0.1,137.65,137.61,14.06159857]
[1765204987519,6.12504695,137.62,137.56,6.12504695]
[1765204987719,0.72960747,137.61,137.48,0.99999999]
[1765204988034,6.12504695,137.6,137.54,6.12504695]
[1765204988199,6.12504695,137.61,137.55,6.12504695]
[1765204988396,0.72960747,137.6,137.53,18.17678684]
[1765204988596,6.12504695,137.58,137.52,13.39657863]
[1765204988901,6.12504695,137.56,137.5,22.0272758]
[1765204989307,6.12504695,137.57,137.51,24.30471237]
[1765204989663,0.1,137.68,137.59,16.308864]
[1765204989799,0.1,137.74,137.67,6.12504695]
[1765204989997,0.1,137.74,137.72,6.12504695]
[1765204990239,0.1,137.74,137.73,6.79504695]
[1765204990643,0.1,137.85,137.76,41.71536806]
[1765204990846,0.1,137.85,137.83,16.308864]
[1765204991069,0.1,137.85,137.83,6.12504695]
[1765204991579,7.96,137.92,137.84,0.67]
[1765204991738,7.24742716,137.98,137.85,16.308864]
[1765204991739,0.66,137.96,137.85,16.308864]
[1765204991939,0.66,137.96,137.92,6.12504695]
[1765204992162,8.62,137.96,137.92,6.12504695]
[1765204992360,0.66,137.95,137.92,6.12504695]
[1765204992536,7.96,137.94,137.92,6.12504695]
[1765204992741,0.66,137.95,137.93,8.8356835]
[1765204992985,0.66,137.94,137.88,25.38439222]
[1765204993341,8.8356835,137.96,137.88,7.25268349]
[1765204993537,0.66,137.95,137.88,7.25268349]
[1765204993764,0.66,137.95,137.88,25.38439222]
[1765204993940,0.66,137.95,137.88,7.25268349]
[1765204994140,8.80994492,137.94,137.88,7.25268349]
[1765204994341,16.308864,137.93,137.88,7.25268349]
[1765204994553,8.80994492,137.92,137.87,7.25317377]
[1765204994754,7.96,137.91,137.87,8.8356835]
[1765204994965,8.62,137.91,137.87,8.8356835]
[1765204995161,0.66,137.9,137.87,8.8356835]
[1765204995516,24.268864,137.93,137.88,8.8356835]
[1765204995777,9.46994492,137.92,137.86,8.8356835]
[1765204995945,17.42994492,137.92,137.87,8.8356835]
[1765204996287,0.66,137.92,137.9,8.8356835]
[1765204996583,8.8356835,137.97,137.91,8.8356835]
[1765204996584,0.66,137.97,137.91,8.8356835]
[1765204996758,0.66,137.97,137.93,8.8356835]
[1765204997087,8.8356835,137.96,137.88,16.08815702]
[1765204997380,8.80994492,137.94,137.87,16.08885495]
[1765204997556,8.80994492,137.94,137.86,18.13355642]
[1765204997557,16.308864,137.89,137.84,7.25478816]
[1765204997783,0.66,137.92,137.85,0.67]
[1765204998012,0.66,137.92,137.87,8.8356835]
[1765204998172,0.66,137.92,137.85,8.8356835]
[1765204998173,8.80994492,137.91,137.85,8.8356835]
[1765204998566,0.66,137.9,137.85,8.8356835]
[1765204998772,7.25215751,137.89,137.84,7.25478816]
[1765204999076,24.22055664,137.9,137.84,16.09047166]
[1765204999399,0.66,137.89,137.83,8.8356835]
[1765204999583,16.74994492,137.88,137.82,8.8356835]
[1765204999783,8.80994492,137.85,137.79,8.8356835]
[1765205000098,8.80994492,137.85,137.76,7.96]
[1765205000099,8.80994492,137.85,137.8,16.09211906]
[1765205000276,9.46994492,137.85,137.8,16.09211906]
[1765205000472,0.66,137.84,137.81,8.8356835]
[1765205000679,16.308864,137.86,137.82,10.45688337]
[1765205000680,16.968864,137.86,137.82,10.45688337]
[1765205000879,16.968864,137.86,137.8,10.45688337]
[1765205000880,0.66,137.85,137.8,10.45688337]
[1765205001089,8.80994492,137.84,137.78,10.45688337]
[1765205001279,0.66,137.85,137.8,10.45688337]
[1765205001478,8.6,137.85,137.8,10.45688337]
[1765205001890,0.69,137.84,137.8,10.45688337]
[1765205002090,42.82967957,137.86,137.81,10.45688337]
[1765205002091,25.11880892,137.86,137.81,10.45688337]
[1765205002290,16.998864,137.86,137.82,10.45688337]
[1765205002501,7.94,137.88,137.84,10.45688337]
[1765205002704,0.69,137.89,137.85,10.45688337]
[1765205002900,0.69,137.89,137.85,17.71109265]
[1765205003110,0.69,137.89,137.85,17.71111128]
[1765205003312,7.25091983,137.92,137.86,10.45688337]
[1765205003476,0.69,137.92,137.88,10.45688337]
[1765205003676,7.94,137.93,137.9,10.45688337]
[1765205004209,7.94,137.95,137.92,10.45688337]
[1765205004594,19.26682829,137.93,137.86,10.45688337]
[1765205004789,19.26682829,137.93,137.87,10.45688337]
[1765205004988,7.25058004,137.92,137.87,17.70999547]
[1765205005192,7.94,137.93,137.9,10.45688337]
[1765205005400,8.63,137.94,137.88,10.45688337]
[1765205005603,0.69,137.94,137.88,10.45688337]
[1765205005805,27.89682829,137.93,137.87,10.45688337]
[1765205006007,10.45688337,137.91,137.84,10.45688337]
[1765205006314,7.94,137.9,137.84,10.45688337]
[1765205006479,17.43994492,137.9,137.84,10.45688337]
[1765205006685,0.69,137.89,137.83,10.45688337]
[1765205006911,7.25268349,137.88,137.83,17.7121738]
[1765205007406,0.69,137.87,137.83,17.71217426]
[1765205007912,8.63,137.87,137.83,17.71217426]
[1765205008317,11.14688337,137.86,137.8,17.71337593]
[1765205008495,11.14688337,137.86,137.75,45.10730362]
[1765205008496,0.69,137.86,137.81,17.71275346]
[1765205008695,7.94,137.88,137.85,10.45688337]
[1765205008907,7.94,137.89,137.86,10.45688337]
[1765205009108,7.94,137.89,137.85,10.45688337]
[1765205009305,7.94,137.89,137.86,10.45688337]
[1765205009714,7.94,137.9,137.87,10.45688337]
[1765205010027,0.69,137.96,137.89,10.45688337]
[1765205010207,0.69,137.96,137.92,10.45688337]
[1765205010531,7.94,137.95,137.91,10.45688337]
[1765205010705,7.94,137.95,137.89,16.308864]
[1765205010706,7.94,137.95,137.93,10.45688337]
[1765205010908,7.94,137.97,137.95,7.24900326]
[1765205011130,0.69,138.01,137.96,10.45688337]
[1765205011301,7.94,137.98,137.95,10.45688337]
[1765205011626,36.21877719,138.05,137.97,10.45688337]
[1765205011627,7.24462833,138.04,137.97,10.45688337]
[1765205011927,8.63,138.04,137.99,10.45688337]
[1765205012134,8.63,138.04,138.01,10.45688337]
[1765205012135,0.69,138.03,138.01,10.45688337]
[1765205012318,7.94,138.04,138.01,10.45688337]
[1765205012521,8.63,138.04,138.0,10.45688337]
[1765205012719,7.94,138.04,138.01,10.45688337]
[1765205012922,7.94,138.05,138.01,17.7024628]
[1765205013120,15.87383842,138.05,138.0,10.45688337]
[1765205013297,31.49270242,138.05,137.99,10.45688337]
[1765205013632,19.26682829,138.01,137.95,10.45688337]
[1765205013809,19.26682829,138.01,137.92,16.308864]
[1765205013810,18.39688337,138.0,137.93,10.45688337]
[1765205014012,19.26682829,137.99,137.93,10.45688337]
[1765205014330,10.45688337,137.98,137.92,10.45688337]
[1765205014526,26.76574737,137.99,137.93,10.45688337]
[1765205014751,16.308864,137.99,137.94,17.70639077]
[1765205014906,7.94,137.98,137.95,10.45688337]
[1765205015110,16.308864,137.99,137.95,17.70583812]
[1765205015111,16.998864,137.99,137.95,17.70583812]
[1765205015419,16.998864,137.99,137.93,18.12398057]
[1765205015420,8.63,137.98,137.93,10.45688337]
[1765205015750,8.63,137.98,137.88,7.94]
[1765205015751,19.26682829,137.97,137.91,10.45688337]
[1765205015907,19.95682829,137.97,137.91,10.45688337]
[1765205016110,19.95682829,137.97,137.9,17.70843212]
[1765205016111,0.69,137.96,137.9,17.70843212]
[1765205016440,19.26682829,137.95,137.88,17.70947716]
[1765205016645,8.63,137.94,137.88,10.45688337]
[1765205017013,0.69,137.93,137.87,10.45688337]
[1765205017319,7.94017292,137.93,137.88,10.45688337]
[1765205017702,0.69,137.92,137.88,10.45688337]
[1765205017907,7.94017292,137.93,137.89,10.45688337]
[1765205018103,7.94017292,137.93,137.88,10.45688337]
[1765205018308,0.69,137.92,137.87,17.70970234]
[1765205018529,15.18955444,137.94,137.89,10.45688337]
[1765205018708,15.18955444,137.94,137.87,0.7]
[1765205018709,7.94,137.94,137.9,10.45688337]
[1765205018908,7.94,137.93,137.91,10.45688337]
[1765205019138,0.69,138.01,137.92,10.45688337]
[1765205019305,7.93597057,138.01,137.91,7.94]
[1765205019510,7.93597057,138.01,137.96,10.45688337]
[1765205019736,7.93597057,138.01,137.92,0.7]
[1765205019935,0.69,138.01,137.97,10.45688337]
[1765205021252,0.69,138.02,137.98,10.45688337]
[1765205021541,0.69,138.05,138.0,10.45688337]
[1765205021745,7.94,138.03,138.0,10.45688337]
[1765205021953,24.24279353,138.05,138.0,10.45688337]
[1765205022236,0.79,138.08,138.04,10.45688337]
[1765205022543,7.94,138.07,138.04,17.70116039]
[1765205022747,0.1,138.08,138.05,10.45688337]
[1765205022910,0.79,138.08,138.04,10.45688337]
[1765205023111,0.1,138.08,138.06,10.45688337]
[1765205023650,0.1,138.08,138.03,7.24469598]
[1765205023978,0.69,138.07,138.02,10.45688337]
[1765205024111,0.69,138.07,138.03,10.45688337]
[1765205024310,0.69,138.07,138.02,10.45688337]
[1765205024513,7.24322758,138.06,138.02,10.45688337]
[1765205024833,7.24322758,138.06,138.0,7.24623568]
[1765205025038,7.24322758,138.06,137.98,17.70379441]
[1765205025039,11.14688337,138.05,137.98,17.70379441]
[1765205025238,27.45574737,138.05,137.97,7.94]
[1765205025409,0.69,138.04,138.0,10.45688337]
[1765205025609,0.69,138.04,137.99,7.24653124]
[1765205025814,8.63,138.04,137.99,10.45688337]
[1765205026035,24.2416676,138.07,138.02,10.45688337]
[1765205026234,32.18157809,138.07,138.03,10.45688337]
[1765205026557,7.24375226,138.05,138.0,10.45688337]
[1765205026846,7.24375226,138.05,137.98,10.45688337]
[1765205026847,35.81001628,138.05,137.98,10.45688337]
[1765205027019,10.45688337,138.03,137.97,7.94]
[1765205027339,10.45688337,137.99,137.92,10.45688337]
[1765205027526,25.11880892,138.0,137.93,17.70680203]
[1765205027527,7.94,137.98,137.93,17.70680203]
[1765205027708,7.94,137.98,137.94,10.45688337]
[1765205027912,0.69,137.97,137.92,10.45688337]
[1765205028322,0.69,137.97,137.91,10.45688337]
[1765205028522,7.24847781,137.96,137.91,10.45688337]
[1765205028722,7.24847781,137.96,137.89,7.94]
[1765205028723,0.69,137.95,137.89,10.45688337]
[1765205028921,7.94,137.94,137.9,10.45688337]
[1765205029122,7.94,137.94,137.88,10.45688337]
[1765205029313,0.69,137.93,137.88,10.45688337]
[1765205029649,0.69,137.93,137.87,10.45688337]
[1765205029819,16.308864,137.94,137.9,17.70840699]
[1765205030018,16.998864,137.94,137.9,17.70840699]
[1765205030323,0.69,137.93,137.87,10.45688337]
[1765205030527,7.94,137.92,137.88,17.70943124]
[1765205030842,8.63,137.93,137.89,10.45688337]
[1765205031030,15.88014383,137.93,137.89,10.45688337]
[1765205031240,0.66,137.92,137.87,17.71002734]
[1765205031431,0.66,137.92,137.88,7.25257532]
[1765205031631,0.66,137.92,137.88,17.70945869]
[1765205032352,7.94,137.93,137.9,10.45688337]
[1765205032526,7.94,137.93,137.89,10.45688337]
[1765205032850,7.90949652,137.95,137.9,17.70851498]
[1765205033143,7.94,137.94,137.9,15.08523331]
[1765205033343,8.6,137.94,137.89,15.08566993]
[1765205033646,8.80994492,138.0,137.93,7.8336017]
[1765205033944,0.66,137.99,137.94,7.8336017]
[1765205034243,8.80994492,137.98,137.92,7.8336017]
[1765205034425,0.66,137.97,137.92,7.8336017]
[1765205034741,7.24847781,137.96,137.92,7.8336017]
[1765205034949,0.66,137.96,137.93,7.8336017]
[1765205035422,0.66,137.96,137.92,15.08411296]
[1765205035625,0.66,137.96,137.91,15.08455281]
[1765205035843,0.66,137.96,137.92,7.25050038]
[1765205036044,16.308864,137.99,137.95,7.8336017]
[1765205036224,0.66,138.03,137.98,7.8336017]
[1765205036745,7.90485167,138.03,137.98,7.8336017]
[1765205037248,0.66,138.02,137.99,7.8336017]
[1765205037749,7.24485167,138.03,138.0,7.8336017]
[1765205037750,7.94,138.03,138.0,7.8336017]
[1765205038044,0.66,138.03,138.0,7.8336017]
[1765205038343,0.66,138.03,138.0,7.67959654]
[1765205038541,0.66,138.03,137.98,7.24730901]
[1765205038714,0.66,138.03,138.0,7.67959654]
[1765205038916,0.66,138.03,138.0,14.92585567]
[1765205039148,8.6,138.03,138.0,14.92585567]
[1765205039343,15.84482376,138.03,137.99,7.67959654]
[1765205039542,0.69,138.02,137.99,7.67959654]
[1765205040046,0.69,138.02,137.96,34.42962028]
[1765205040351,0.69,138.02,138.0,7.67959654]
[1765205040551,0.69,138.02,137.99,7.67959654]
[1765205040751,0.69,138.02,137.99,14.9262788]
[1765205041045,7.94,138.03,138.01,7.67959654]
[1765205041247,7.94,138.04,138.02,7.67959654]
[1765205042234,0.69,138.03,137.99,7.67959654]
[1765205042430,0.69,138.03,138.0,7.67959654]
[1765205042732,7.94,138.04,138.02,7.67959654]
[1765205042931,0.69,138.07,138.03,7.67959654]
[1765205043131,8.73,138.08,138.06,7.67959654]
[1765205043343,8.73,138.08,138.02,25.3583496]
[1765205043637,8.73,138.08,138.06,7.67959654]
[1765205043836,8.73,138.08,138.04,7.67959654]
[1765205044018,0.69,138.07,138.04,7.67959654]
[1765205044221,8.04,138.08,138.06,7.67959654]
[1765205044418,0.1,138.08,138.06,7.67959654]
[1765205044639,0.1,138.08,138.07,7.67959654]
[1765205045053,0.1,138.12,138.07,15.60229951]
[1765205045224,0.1,138.12,138.11,7.67959654]
[1765205045421,0.69,138.19,138.11,7.67959654]
[1765205045625,0.69,138.19,138.17,7.67959654]
[1765205045838,8.63,138.21,138.18,7.67959654]
[1765205046039,7.94,138.21,138.19,7.67959654]
[1765205046240,7.92395401,138.24,138.2,7.67959654]
[1765205046241,0.69,138.23,138.2,7.67959654]
[1765205046449,7.94,138.24,138.21,7.67959654]
[1765205046656,0.69,138.26,138.22,7.67959654]
[1765205046827,0.69,138.26,138.2,7.67959654]
[1765205047029,33.68424122,138.26,138.2,7.67959654]
[1765205047255,7.67959654,138.24,138.18,7.67959654]
[1765205047453,24.248864,138.23,138.2,7.67959654]
[1765205047667,7.92185763,138.28,138.19,0.68]
[1765205047833,7.92185763,138.28,138.24,7.67959654]
[1765205048160,7.67959654,138.25,138.17,7.67959654]
[1765205048455,32.79840546,138.24,138.17,7.23703554]
[1765205048658,0.69,138.24,138.2,7.67959654]
[1765205048846,0.69,138.23,138.19,7.67959654]
[1765205049163,49.31041104,138.22,138.14,7.23895798]
[1765205049462,7.67959654,138.19,138.13,7.67959654]
[1765205049643,0.69,138.18,138.13,7.67959654]
[1765205049831,0.69,138.18,138.15,7.67959654]
[1765205050032,0.69,138.21,138.17,7.67959654]
[1765205050259,0.69,138.21,138.08,0.99999999]
[1765205050260,0.69,138.2,138.12,7.67959654]
[1765205050438,16.308864,138.18,138.12,7.67959654]
[1765205050633,8.80994492,138.16,138.07,16.988864]
[1765205050854,16.48954146,138.16,138.1,7.67959654]
[1765205051069,8.61,138.17,138.13,7.67959654]
[1765205051355,8.61,138.17,138.12,7.67959654]
[1765205051760,7.67959654,138.13,138.06,7.24277899]
[1765205052061,7.67959654,138.09,138.03,7.67959654]
[1765205052237,16.48954146,138.05,137.99,7.67959654]
[1765205052438,16.48954146,138.05,138.02,7.67959654]
[1765205052439,7.92,138.05,138.02,7.67959654]
[1765205052641,8.61,138.05,138.01,14.9253686]
[1765205052848,8.61,138.09,138.04,7.67959654]
[1765205053048,8.61,138.09,138.02,7.67959654]
[1765205053049,15.61177498,138.08,138.02,7.67959654]
[1765205053346,0.69,138.08,138.0,8.80994492]
[1765205053553,0.69,138.07,138.02,7.67959654]
[1765205053851,0.69,138.07,138.03,7.67959654]
[1765205054236,0.69,138.07,138.02,7.67959654]
[1765205054428,16.308864,138.06,138.02,7.67959654]
[1765205054628,16.308864,138.06,138.0,7.67959654]
[1765205054840,8.61,138.05,138.0,7.67959654]
[1765205055156,7.24427702,138.04,137.99,14.92649848]
[1765205055333,7.92,138.05,138.01,7.67959654]
[1765205055670,8.61,138.07,138.03,7.67959654]
[1765205055838,8.61,138.07,137.99,26.04415681]
[1765205055839,0.69,138.06,137.99,25.36415681]
[1765205056039,7.92,138.07,138.02,7.67959654]
[1765205056343,23.55116619,138.08,138.05,7.67959654]
[1765205056344,16.308864,138.08,138.05,7.67959654]
[1765205056544,16.998864,138.08,138.04,7.67959654]
[1765205056842,7.92,138.09,138.06,7.67959654]
[1765205057034,8.61,138.09,138.05,14.92306759]
[1765205057236,8.61,138.09,138.06,7.67959654]
[1765205057834,0.69,138.08,138.04,7.67959654]
[1765205058266,0.69,138.08,138.03,7.67959654]
[1765205058462,17.17954146,138.08,138.02,14.92453342]
[1765205058658,9.49994492,138.08,138.02,14.92453342]
[1765205058971,0.69,138.07,138.03,14.92431581]
[1765205059132,7.93285519,138.07,138.02,7.67959654]
[1765205059337,0.69,138.06,138.01,7.67959654]
[1765205059545,0.69,138.06,138.02,7.67959654]
[1765205059956,0.69,138.06,138.02,7.24521283]
[1765205060159,0.69,138.06,138.02,14.92482127]
[1765205060364,8.36959654,138.06,138.0,7.67959654]
[1765205060664,8.36959654,138.06,137.99,7.94]
[1765205060665,0.69,138.06,138.02,7.67959654]
[1765205061179,7.96375226,138.05,138.01,7.67959654]
[1765205061378,41.67272945,138.05,137.99,22.86640854]
[1765205061588,0.72,138.04,138.0,7.67959654]
[1765205062266,8.39959654,138.04,137.98,7.87959654]
[1765205062452,16.308864,138.04,138.01,7.67959654]
[1765205062659,7.92,138.05,138.03,7.67959654]
[1765205062979,7.96282581,138.07,138.03,6.6149614]
[1765205063158,0.72,138.05,138.03,6.6149614]
[1765205063563,0.72,138.05,138.02,6.6149614]
[1765205063782,24.228864,138.08,138.04,6.6149614]
[1765205064079,24.228864,138.08,138.05,6.6149614]
[1765205064275,15.42490632,138.11,138.07,6.6149614]
[1765205064276,7.24078787,138.11,138.07,6.6149614]
[1765205064484,0.72,138.12,138.09,6.6149614]
[1765205064708,15.15908129,138.14,138.11,6.6149614]
[1765205064850,0.72,138.13,138.1,6.6149614]
[1765205065227,0.72,138.13,138.1,13.85601099]
[1765205065483,15.15908968,138.14,138.1,6.6149614]
[1765205065677,0.72,138.12,138.09,6.6149614]
[1765205066077,0.72,138.12,138.07,6.6149614]
[1765205066245,0.72,138.12,138.08,6.6149614]
[1765205066447,8.80994492,138.11,138.06,6.6149614]
[1765205066781,39.65377032,138.11,138.04,7.24389677]
[1765205067002,8.80994492,138.11,138.04,0.71]
[1765205067150,0.72,138.13,138.1,6.6149614]
[1765205067478,36.18694523,138.18,138.12,6.6149614]
[1765205067479,8.64,138.17,138.12,6.6149614]
[1765205067684,17.028864,138.16,138.12,6.6149614]
[1765205067854,0.72,138.15,138.12,6.6149614]
[1765205068364,15.1576345,138.17,138.13,6.6149614]
[1765205068365,7.92,138.17,138.13,6.6149614]
[1765205068682,7.92,138.17,138.15,6.6149614]
[1765205068853,0.72,138.16,138.13,6.6149614]
[1765205069272,0.72,138.16,138.11,6.6149614]
[1765205069273,9.52994492,138.16,138.11,6.6149614]
[1765205069486,0.72,138.15,138.11,6.6149614]
[1765205069691,7.92,138.17,138.1,7.2410246]
[1765205069891,8.06575727,138.27,138.16,6.6149614]
[1765205069892,0.72,138.21,138.16,6.6149614]
[1765205070097,0.72,138.21,138.17,6.6149614]
[1765205070098,7.92,138.2,138.17,6.6149614]
[1765205070299,24.228864,138.2,138.15,6.6149614]
[1765205070475,24.948864,138.2,138.16,6.6149614]
[1765205070665,24.948864,138.2,138.17,6.6149614]
[1765205070871,8.64,138.2,138.17,6.6149614]
[1765205071205,0.72,138.23,138.19,13.85128717]
[1765205071491,0.72,138.23,138.2,6.6149614]
[1765205071492,8.64,138.23,138.2,6.6149614]
[1765205071889,7.95280452,138.26,138.22,6.6149614]
[1765205072197,0.72,138.26,138.23,6.6149614]
[1765205072376,15.15235577,138.27,138.23,6.6149614]
[1765205072736,0.72,138.26,138.21,6.6149614]
[1765205072899,8.80994492,138.25,138.21,6.6149614]
[1765205073205,7.23379629,138.24,138.21,6.6149614]
[1765205073407,0.1,138.29,138.23,6.6149614]
[1765205073689,0.1,138.29,138.22,0.71]
[1765205073690,8.05128701,138.29,138.24,6.6149614]
[1765205073895,14.66624841,138.29,138.21,7.23495831]
[1765205074102,15.42490632,138.26,138.2,6.6149614]
[1765205074273,16.72994492,138.26,138.17,0.71]
[1765205074473,0.72,138.25,138.21,6.6149614]
[1765205074803,0.72,138.25,138.2,6.6149614]
[1765205074980,8.80994492,138.24,138.19,6.6149614]
[1765205075170,7.95353601,138.25,138.2,6.6149614]
[1765205075365,7.92,138.26,138.22,6.6149614]
[1765205076008,0.72,138.25,138.22,6.6149614]
[1765205076187,15.15280109,138.26,138.23,6.6149614]
[1765205076188,7.92,138.26,138.23,6.6149614]
[1765205076381,7.92,138.26,138.24,6.6149614]
[1765205076587,7.92,138.26,138.22,6.6149614]
[1765205076896,15.8729145,138.26,138.22,6.6149614]
[1765205077086,0.72,138.25,138.21,6.6149614]
[1765205077287,7.92,138.26,138.23,6.6149614]
[1765205077490,7.92,138.26,138.24,6.6149614]
[1765205077715,16.308864,138.28,138.25,6.6149614]
[1765205077902,9.52994492,138.27,138.21,7.23528441]
[1765205078104,7.92,138.26,138.2,6.6149614]
[1765205078405,6.6149614,138.24,138.18,6.6149614]
[1765205078600,23.34490632,138.23,138.17,6.6149614]
[1765205078906,7.92,138.26,138.22,6.6149614]
[1765205079079,7.92,138.26,138.23,6.6149614]
[1765205079283,16.308864,138.26,138.23,6.6149614]
[1765205079594,24.26163293,138.26,138.22,6.6149614]
[1765205079799,8.64,138.25,138.21,13.8502096]
[1765205079978,8.64,138.25,138.18,7.92]
[1765205080299,0.72,138.24,138.18,7.92]
[1765205080508,7.92,138.25,138.21,13.84992009]
[1765205080727,25.83880892,138.28,138.24,4.35470255]
[1765205081083,16.308864,138.28,138.25,4.35470255]
[1765205081397,8.02,138.29,138.27,4.35470255]
[1765205081591,0.1,138.29,138.27,4.35470255]
[1765205081788,0.1,138.29,138.26,7.23257949]
[1765205082022,0.1,138.29,138.26,4.35470255]
[1765205082181,0.1,138.29,138.28,4.35470255]
[1765205082883,0.1,138.29,138.28,5.06470255]
[1765205083284,0.1,138.29,138.28,12.29640633]
[1765205083488,8.02,138.37,138.28,38.2956658]
[1765205083790,0.1,138.37,138.35,4.35470255]
[1765205084000,0.1,138.37,138.36,4.35470255]
[1765205084381,0.1,138.37,138.35,4.35470255]
[1765205084783,0.82,138.37,138.34,4.35470255]
[1765205085005,8.04710209,138.37,138.33,4.35470255]
[1765205085200,0.82,138.37,138.34,4.35470255]
[1765205085710,0.1,138.37,138.35,4.35470255]
[1765205085894,0.1,138.37,138.36,4.35470255]
[1765205086305,0.1,138.37,138.35,4.35470255]
[1765205086607,8.04710255,138.37,138.31,7.22997046]
[1765205086813,0.1,138.37,138.35,4.35470255]
[1765205087011,0.1,138.37,138.36,4.35470255]
[1765205087207,0.1,138.37,138.32,0.69]
[1765205087513,0.1,138.37,138.36,4.35470255]